fUST/lending_fUST_20250506
["ID","MTS","AMOUNT","RATE_DAILY","PERIOD"]
[360077945,1746539442057,-400.0,0.00019178,2]
[360077947,1746539442067,-400.0,0.00019178,2]
[360077949,1746539442077,-505.15,0.00019178,2]
[360077951,1746539442087,-965.25,0.00019178,2]
[360077953,1746539442096,-400.0,0.00019178,2]
[360077955,1746539442106,-400.0,0.00019178,2]
[360077957,1746539442115,-400.0,0.00019178,2]
[360077959,1746539442124,-470.97,0.00019178,2]
[360077960,1746539442134,-408.92940726,0.00019178,2]
[360077962,1746539442144,-498.48,0.00019178,2]
[360077964,1746539442153,-400.0,0.00019178,2]
[360077966,1746539442163,-400.0,0.00019178,2]
[360077969,1746539442173,-596.7,0.00019178,2]
[360077972,1746539442183,-408.89,0.00019178,2]
[360078001,1746539442370,-433.81,0.00019178,2]
[360078003,1746539442380,-410.43810248,0.00019178,2]
[360078006,1746539442390,-403.05136874,0.00019178,2]
[360078009,1746539442399,-594.37,0.00019178,2]
[360078011,1746539442409,-400.0,0.00019178,2]
[360078013,1746539442418,-692.67,0.00019178,2]
[360078015,1746539442428,-565.61,0.00019178,2]
[360078016,1746539442437,-400.0,0.00019178,2]
[360078018,1746539442447,-400.0,0.00019178,2]
[360078020,1746539442456,-404.05318023,0.00019178,2]
[360078022,1746539442466,-400.0,0.00019178,2]
[360078024,1746539442475,-500.0,0.00019178,2]
[360078026,1746539442485,-400.0,0.00019178,2]
[360078028,1746539442494,-400.0,0.00019178,2]
[360078030,1746539442504,-407.33338974,0.00019178,2]
[360078031,1746539442514,-400.0,0.00019178,2]
[360078034,1746539442526,-400.0,0.00019178,2]
[360078036,1746539442539,-400.0,0.00019178,2]
[360078037,1746539442548,-400.0,0.00019178,2]
[360078039,1746539442558,-407.61349436,0.00019178,2]
[360078041,1746539442567,-408.25513853,0.00019178,2]
[360078043,1746539442577,-400.0,0.00019178,2]
[360078045,1746539442586,-402.9905216,0.00019178,2]
[360078047,1746539442597,-400.0,0.00019178,2]
[360078049,1746539442610,-408.41553255,0.00019178,2]
[360078051,1746539442620,-400.0,0.00019178,2]
[360078052,1746539442630,-400.0,0.00019178,2]
[360078054,1746539442641,-410.02294539,0.00019178,2]
[360078056,1746539442651,-400.0,0.00019178,2]
[360078058,1746539442661,-1013.92686173,0.00019178,2]
[360078060,1746539442673,-925.01,0.00019178,2]
[360078062,1746539442683,-400.0,0.00019178,2]
[360078064,1746539442692,-407.28009437,0.00019178,2]
[360078066,1746539442702,-406.27990152,0.00019178,2]
[360078068,1746539442712,-540.28,0.00019178,2]
[360078070,1746539442721,-400.0,0.00019178,2]
[360078072,1746539442731,-1986.4,0.00019178,2]
[360078074,1746539442741,-413.95268273,0.00019178,2]
[360078076,1746539442751,-314.27679483,0.00019178,2]
[360078078,1746539442761,-400.0,0.00019178,2]
[360078080,1746539442771,-403.80119766,0.00019178,2]
[360078082,1746539442780,-209.74151803,0.00019178,2]
[360078084,1746539442790,-495.16,0.00019178,2]
[360078086,1746539442800,-2391.06,0.00019178,2]
[360078088,1746539442810,-400.0,0.00019178,2]
[360078090,1746539442819,-400.0,0.00019178,2]
[360078092,1746539442828,-400.0,0.00019178,2]
[360078094,1746539442838,-402.41187786,0.00019178,2]
[360078096,1746539442847,-400.0,0.00019178,2]
[360078098,1746539442859,-400.0,0.00019178,2]
[360078100,1746539442868,-401.0693151,0.00019178,2]
[360078102,1746539442878,-400.0,0.00019178,2]
[360078103,1746539442887,-400.0,0.00019178,2]
[360078104,1746539442896,-400.0,0.00019178,2]
[360078105,1746539442905,-400.0,0.00019178,2]
[360078106,1746539442914,-400.0,0.00019178,2]
[360078107,1746539442923,-400.0,0.00019178,2]
[360078108,1746539442933,-400.0,0.00019178,2]
[360078109,1746539442942,-400.0,0.00019178,2]
[360078110,1746539442951,-400.0,0.00019178,2]
[360078112,1746539442960,-414.42574012,0.00019178,2]
[360078113,1746539442970,-400.0,0.00019178,2]
[360078114,1746539442979,-2406.39,0.00019178,2]
[360078115,1746539442988,-777.59,0.00019178,2]
[360078116,1746539442997,-1801.0,0.00019178,2]
[360078117,1746539443006,-400.0,0.00019178,2]
[360078118,1746539443016,-400.0,0.00019178,2]
[360078119,1746539443025,-400.0,0.00019178,2]
[360078120,1746539443037,-1322.84,0.00019178,2]
[360078121,1746539443046,-400.0,0.00019178,2]
[360078122,1746539443055,-683.38,0.00019178,2]
[360078123,1746539443064,-400.0,0.00019178,2]
[360078124,1746539443075,-561.19,0.00019178,2]
[360078127,1746539443085,-400.0,0.00019178,2]
[360078129,1746539443095,-643.79,0.00019178,2]
[360078131,1746539443105,-1874.49,0.00019178,2]
[360078133,1746539443115,-400.0,0.00019178,2]
[360078135,1746539443124,-1682.92,0.00019178,2]
[360078136,1746539443134,-400.0,0.00019178,2]
[360078138,1746539443143,-405.32755235,0.00019178,2]
[360078141,1746539443153,-408.2952987,0.00019178,2]
[360078143,1746539443162,-401.67160681,0.00019178,2]
[360078144,1746539443171,-401.58873496,0.00019178,2]
[360078147,1746539443182,-400.0,0.00019178,2]
[360078149,1746539443192,-417.69,0.00019178,2]
[360078150,1746539443201,-400.0,0.00019178,2]
[360078153,1746539443212,-400.0,0.00019178,2]
[360078155,1746539443222,-1387.4,0.00019178,2]
[360078157,1746539443231,-400.0,0.00019178,2]
[360078159,1746539443241,-400.0,0.00019178,2]
[360078161,1746539443251,-2254.63,0.00019178,2]
[360078163,1746539443260,-2254.63,0.00019178,2]
[360078165,1746539443270,-2254.63,0.00019178,2]
[360078167,1746539443280,-2254.63,0.00019178,2]
[360078169,1746539443289,-2254.63,0.00019178,2]
[360078171,1746539443299,-2254.63,0.00019178,2]
[360078173,1746539443309,-2254.63,0.00019178,2]
[360078175,1746539443318,-2254.63,0.00019178,2]
[360078177,1746539443328,-2254.63,0.00019178,2]
[360078179,1746539443338,-2254.63,0.00019178,2]
[360078181,1746539443347,-2254.63,0.00019178,2]
[360078183,1746539443356,-2254.63,0.00019178,2]
[360078185,1746539443366,-400.0,0.00019178,2]
[360078187,1746539443375,-2254.63,0.00019178,2]
[360078189,1746539443385,-2254.63,0.00019178,2]
[360078191,1746539443395,-2254.63,0.00019178,2]
[360078193,1746539443404,-2254.63,0.00019178,2]
[360078195,1746539443414,-2254.63,0.00019178,2]
[360078197,1746539443423,-2254.63,0.00019178,2]
[360078199,1746539443433,-400.0,0.00019178,2]
[360078202,1746539443444,-2254.63,0.00019178,2]
[360078204,1746539443454,-2254.63,0.00019178,2]
[360078206,1746539443464,-2020.67,0.00019178,2]
[360078208,1746539443474,-2254.63,0.00019178,2]
[360078210,1746539443484,-2254.63,0.00019178,2]
[360078212,1746539443493,-2254.63,0.00019178,2]
[360078214,1746539443503,-2254.63,0.00019178,2]
[360078216,1746539443513,-1257.59,0.00019178,2]
[360078218,1746539443522,-1938.79,0.00019178,2]
[360078220,1746539443534,-405.48514162,0.00019178,2]
[360078222,1746539443544,-400.0,0.00019178,2]
[360078224,1746539443554,-400.0,0.00019178,2]
[360078226,1746539443564,-466.68,0.00019178,2]
[360078228,1746539443575,-400.0,0.00019178,2]
[360078230,1746539443585,-400.0,0.00019178,2]
[360078232,1746539443595,-401.96524849,0.00019178,2]
[360078235,1746539443608,-400.0,0.00019178,2]
[360078237,1746539443617,-3771.53,0.00019178,2]
[360078239,1746539443627,-400.0,0.00019178,2]
[360078241,1746539443636,-1040.35,0.00019178,2]
[360078243,1746539443647,-400.0,0.00019178,2]
[360078245,1746539443656,-400.0,0.00019178,2]
[360078247,1746539443666,-400.0,0.00019178,2]
[360078249,1746539443675,-400.0,0.00019178,2]
[360078251,1746539443686,-400.0,0.00019178,2]
[360078253,1746539443695,-400.0,0.00019178,2]
[360078255,1746539443704,-400.0,0.00019178,2]
[360078257,1746539443714,-400.0,0.00019178,2]
[360078259,1746539443723,-763.38,0.00019178,2]
[360078261,1746539443733,-404.37927752,0.00019178,2]
[360078263,1746539443742,-400.0,0.00019178,2]
[360078265,1746539443751,-400.0,0.00019178,2]
[360078267,1746539443761,-405.51,0.00019178,2]
[360078269,1746539443772,-1344.17,0.00019178,2]
[360078271,1746539443782,-400.0,0.00019178,2]
[360078273,1746539443791,-648.4,0.00019178,2]
[360078274,1746539443801,-510.88,0.00019178,2]
[360078277,1746539443810,-400.0,0.00019178,2]
[360078278,1746539443820,-506.65,0.00019178,2]
[360078280,1746539443829,-220.53743959,0.00019178,2]
[360078282,1746539443839,-513.7459558,0.00019178,2]
[360078285,1746539443848,-833.12,0.00019178,2]
[360078287,1746539443858,-405.8713486,0.00019178,2]
[360078289,1746539443868,-400.0,0.00019178,2]
[360078291,1746539443877,-400.0,0.00019178,2]
[360078293,1746539443887,-400.0,0.00019178,2]
[360078295,1746539443896,-400.0,0.00019178,2]
[360078297,1746539443906,-400.0,0.00019178,2]
[360078299,1746539443915,-400.0,0.00019178,2]
[360078301,1746539443925,-3622.27,0.00019178,2]
[360078303,1746539443934,-550.04,0.00019178,2]
[360078305,1746539443944,-400.0,0.00019178,2]
[360078307,1746539443953,-495.61,0.00019178,2]
[360078309,1746539443963,-400.0,0.00019178,2]
[360078311,1746539443973,-9064.12,0.00019178,2]
[360078313,1746539443982,-400.0,0.00019178,2]
[360078315,1746539443992,-400.0,0.00019178,2]
[360078317,1746539444001,-400.0,0.00019178,2]
[360078319,1746539444011,-18541.14,0.00019178,2]
[360078321,1746539444021,-3343.96,0.00019178,2]
[360078323,1746539444031,-365.92022932,0.00019178,2]
[360078325,1746539444040,-400.0,0.00019178,2]
[360078327,1746539444050,-400.0,0.00019178,2]
[360078329,1746539444059,-400.0,0.00019178,2]
[360078331,1746539444068,-153.2741125,0.00019178,2]
[360078333,1746539444078,-400.0,0.00019178,2]
[360078335,1746539444089,-3088.97,0.00019178,2]
[360078337,1746539444098,-400.0,0.00019178,2]
[360078340,1746539444108,-234.1504007,0.00019178,2]
[360078342,1746539444118,-400.0,0.00019178,2]
[360078344,1746539444128,-400.0,0.00019178,2]
[360078346,1746539444137,-2462.55,0.00019178,2]
[360078348,1746539444147,-749.43,0.00019178,2]
[360078350,1746539444157,-400.0,0.00019178,2]
[360078352,1746539444166,-400.0,0.00019178,2]
[360078354,1746539444176,-884.07,0.00019178,2]
[360078356,1746539444186,-400.0,0.00019178,2]
[360078358,1746539444195,-1796.34,0.00019178,2]
[360078360,1746539444205,-564.18,0.00019178,2]
[360078362,1746539444215,-400.0,0.00019178,2]
[360078364,1746539444225,-822.18,0.00019178,2]
[360078366,1746539444235,-400.0,0.00019178,2]
[360078368,1746539444244,-400.0,0.00019178,2]
[360078370,1746539444253,-2863.49,0.00019178,2]
[360078372,1746539444263,-2727.04,0.00019178,2]
[360078375,1746539444272,-1079.97,0.00019178,2]
[360078377,1746539444283,-1363.62,0.00019178,2]
[360078379,1746539444292,-400.0,0.00019178,2]
[360078381,1746539444302,-503.74238831,0.00019178,2]
[360078383,1746539444311,-7540.48,0.00019178,2]
[360078385,1746539444320,-400.0,0.00019178,2]
[360078387,1746539444331,-400.0,0.00019178,2]
[360078389,1746539444340,-400.0,0.00019178,2]
[360078391,1746539444350,-406.79252526,0.00019178,2]
[360078393,1746539444359,-1251.97,0.00019178,2]
[360078395,1746539444369,-586.68,0.00019178,2]
[360078397,1746539444379,-5208.12,0.00019178,2]
[360078399,1746539444389,-403.1,0.00019178,2]
[360078401,1746539444398,-400.0,0.00019178,2]
[360078403,1746539444407,-1053.76,0.00019178,2]
[360078405,1746539444417,-401.60716646,0.00019178,2]
[360078407,1746539444427,-437.51,0.00019178,2]
[360078409,1746539444436,-400.0,0.00019178,2]
[360078411,1746539444445,-400.0,0.00019178,2]
[360078413,1746539444455,-2384.1,0.00019178,2]
[360078415,1746539444464,-296.88359585,0.00019178,2]
[360078417,1746539444473,-1609.15,0.00019178,2]
[360078419,1746539444482,-2645.03,0.00019178,2]
[360078421,1746539444492,-400.0,0.00019178,2]
[360078424,1746539444502,-400.0,0.00019178,2]
[360078425,1746539444511,-500.0,0.00019178,2]
[360078428,1746539444520,-650.2,0.00019178,2]
[360078429,1746539444531,-415.73,0.00019178,2]
[360078432,1746539444541,-400.0,0.00019178,2]
[360078434,1746539444550,-353.55320165,0.00019178,2]
[360078436,1746539444560,-400.0,0.00019178,2]
[360078438,1746539444569,-429.92,0.00019178,2]
[360078440,1746539444579,-1446.29,0.00019178,2]
[360078441,1746539444589,-400.0,0.00019178,2]
[360078443,1746539444601,-400.0,0.00019178,2]
[360078446,1746539444611,-2506.91,0.00019178,2]
[360078448,1746539444620,-2062.03,0.00019178,2]
[360078449,1746539444629,-400.0,0.00019178,2]
[360078452,1746539444639,-400.0,0.00019178,2]
[360078453,1746539444648,-326.7264839,0.00019178,2]
[360078455,1746539444658,-400.0,0.00019178,2]
[360078458,1746539444667,-165.01697814,0.00019178,2]
[360078460,1746539444678,-1488.42,0.00019178,2]
[360078462,1746539444687,-1130.69,0.00019178,2]
[360078463,1746539444697,-400.0,0.00019178,2]
[360078465,1746539444707,-400.0,0.00019178,2]
[360078468,1746539444717,-210.67578459,0.00019178,2]
[360078470,1746539444726,-1938.83,0.00019178,2]
[360078472,1746539444737,-2897.87,0.00019178,2]
[360078474,1746539444746,-400.0,0.00019178,2]
[360078475,1746539444755,-400.0,0.00019178,2]
[360078478,1746539444767,-400.0,0.00019178,2]
[360078479,1746539444776,-400.0,0.00019178,2]
[360078481,1746539444787,-567.87,0.00019178,2]
[360078483,1746539444796,-547.45027408,0.00019178,2]
[360078485,1746539444806,-403.34072284,0.00019178,2]
[360078487,1746539444815,-400.0,0.00019178,2]
[360078489,1746539444825,-400.0,0.00019178,2]
[360078491,1746539444834,-400.0,0.00019178,2]
[360078494,1746539444844,-2466.99,0.00019178,2]
[360078496,1746539444854,-153.94588979,0.00019178,2]
[360078497,1746539444863,-960.32,0.00019178,2]
[360078498,1746539444872,-400.0,0.00019178,2]
[360078499,1746539444881,-400.0,0.00019178,2]
[360078500,1746539444891,-400.0,0.00019178,2]
[360078501,1746539444900,-400.0,0.00019178,2]
[360078502,1746539444910,-2466.84,0.00019178,2]
[360078503,1746539444919,-400.0,0.00019178,2]
[360078505,1746539444928,-186.6294111,0.00019178,2]
[360078507,1746539444938,-469.017928,0.00019178,2]
[360078509,1746539444947,-151.0,0.000192,2]
[360078510,1746539444956,-578.93781165,0.0001926,2]
[360078512,1746539444966,-151.0,0.000193,2]
[360078514,1746539444975,-283.177004,0.00019329,2]
[360078516,1746539444985,-283.177004,0.00019329,2]
[360078518,1746539444995,-153.247129,0.00019329,2]
[360078519,1746539445003,-151.0,0.00019329,2]
[360078521,1746539445013,-151.0,0.00019329,2]
[360078523,1746539445022,-153.201412,0.00019329,2]
[360078525,1746539445032,-151.0,0.00019329,2]
[360078526,1746539445041,-151.0,0.00019329,2]
[360078527,1746539445050,-151.0,0.00019329,2]
[360078528,1746539445060,-151.0,0.00019329,2]
[360078529,1746539445069,-151.0,0.00019329,2]
[360078530,1746539445079,-151.0,0.00019329,2]
[360078531,1746539445088,-151.0,0.00019329,2]
[360078532,1746539445097,-151.0,0.00019329,2]
[360078533,1746539445107,-151.0,0.00019329,2]
[360078534,1746539445116,-151.0,0.00019329,2]
[360078535,1746539445125,-183.231814,0.00019329,2]
[360078536,1746539445135,-183.231814,0.00019329,2]
[360078537,1746539445144,-151.0,0.00019329,2]
[360078538,1746539445153,-152.477381,0.00019329,2]
[360078539,1746539445163,-151.0,0.00019329,2]
[360078540,1746539445173,-151.0,0.00019329,2]
[360078542,1746539445182,-151.0,0.00019329,2]
[360078543,1746539445191,-79827.2961807,0.00019329,2]
[360078544,1746539445201,-150.87121571,0.00019352,2]
[360078545,1746539445210,-151.0,0.000194,2]
[360078546,1746539445221,-283.177004,0.00019452,2]
[360078547,1746539445230,-283.177004,0.00019452,2]
[360078548,1746539445239,-400.0,0.00019452,2]
[360078549,1746539445249,-401.22799411,0.00019452,2]
[360078550,1746539445258,-400.0,0.00019452,2]
[360078551,1746539445268,-401.39677314,0.00019452,2]
[360078552,1746539445277,-401.69554683,0.00019452,2]
[360078553,1746539445287,-400.0,0.00019452,2]
[360078555,1746539445297,-400.0,0.00019452,2]
[360078556,1746539445306,-400.0,0.00019452,2]
[360078557,1746539445315,-406.77745766,0.00019452,2]
[360078558,1746539445324,-400.0,0.00019452,2]
[360078559,1746539445334,-400.0,0.00019452,2]
[360078560,1746539445343,-400.0,0.00019452,2]
[360078561,1746539445353,-400.0,0.00019452,2]
[360078563,1746539445362,-400.0,0.00019452,2]
[360078565,1746539445371,-400.0,0.00019452,2]
[360078567,1746539445381,-289.22090928,0.00019452,2]
[360078569,1746539445390,-400.0,0.00019452,2]
[360078570,1746539445400,-320.64628423,0.00019452,2]
[360078571,1746539445410,-400.0,0.00019452,2]
[360078572,1746539445419,-400.0,0.00019452,2]
[360078573,1746539445428,-400.0,0.00019452,2]
[360078574,1746539445437,-151.0,0.00019452,2]
[360078575,1746539445446,-400.0,0.00019452,2]
[360078576,1746539445456,-400.0,0.00019452,2]
[360078578,1746539445465,-400.0,0.00019452,2]
[360078580,1746539445475,-400.0,0.00019452,2]
[360078582,1746539445484,-626.81,0.00019452,2]
[360078584,1746539445633,-405.18487035,0.00019452,2]
[360078585,1746539445645,-400.0,0.00019452,2]
[360078586,1746539445655,-151.0,0.00019452,2]
[360078587,1746539445665,-151.0,0.00019452,2]
[360078588,1746539445675,-400.0,0.00019452,2]
[360078589,1746539445685,-400.0,0.00019452,2]
[360078590,1746539445695,-400.0,0.00019452,2]
[360078591,1746539445704,-202.21434323,0.00019452,2]
[360078593,1746539445714,-400.0,0.00019452,2]
[360078595,1746539445723,-400.0,0.00019452,2]
[360078596,1746539445733,-919.75,0.00019452,2]
[360078597,1746539445742,-400.0,0.00019452,2]
[360078598,1746539445752,-400.0,0.00019452,2]
[360078599,1746539445762,-405.2688485,0.00019452,2]
[360078600,1746539445771,-403.67899135,0.00019452,2]
[360078601,1746539445781,-844.48,0.00019452,2]
[360078602,1746539445791,-400.0,0.00019452,2]
[360078603,1746539445800,-400.0,0.00019452,2]
[360078604,1746539445810,-400.0,0.00019452,2]
[360078606,1746539445819,-400.0,0.00019452,2]
[360078607,1746539445829,-548.5576816,0.00019452,2]
[360078608,1746539445838,-151.0,0.00019452,2]
[360078609,1746539445847,-208.15339489,0.00019452,2]
[360078610,1746539445857,-151.0,0.00019452,2]
[360078611,1746539445867,-400.0,0.00019452,2]
[360078612,1746539445876,-400.0,0.00019452,2]
[360078613,1746539445885,-151.0,0.00019452,2]
[360078614,1746539445895,-400.0,0.00019452,2]
[360078615,1746539445905,-400.0,0.00019452,2]
[360078616,1746539445915,-1266.61,0.00019452,2]
[360078617,1746539445925,-400.0,0.00019452,2]
[360078618,1746539445934,-400.0,0.00019452,2]
[360078619,1746539445944,-309.69643883,0.00019452,2]
[360078620,1746539445954,-400.0,0.00019452,2]
[360078621,1746539445963,-307.91332687,0.00019452,2]
[360078622,1746539445972,-400.0,0.00019452,2]
[360078623,1746539445982,-400.0,0.00019452,2]
[360078624,1746539445991,-514.0298498,0.00019452,2]
[360078625,1746539446000,-400.0,0.00019452,2]
[360078626,1746539446010,-400.0,0.00019452,2]
[360078627,1746539446019,-400.0,0.00019452,2]
[360078628,1746539446028,-204.21910831,0.00019452,2]
[360078629,1746539446039,-400.0,0.00019452,2]
[360078630,1746539446049,-400.0,0.00019452,2]
[360078631,1746539446058,-400.0,0.00019452,2]
[360078632,1746539446067,-400.0,0.00019452,2]
[360078633,1746539446077,-400.0,0.00019452,2]
[360078634,1746539446086,-400.0,0.00019452,2]
[360078635,1746539446096,-956.4,0.00019452,2]
[360078636,1746539446106,-400.0,0.00019452,2]
[360078637,1746539446115,-582.76,0.00019452,2]
[360078638,1746539446124,-400.0,0.00019452,2]
[360078639,1746539446133,-400.0,0.00019452,2]
[360078640,1746539446143,-400.0,0.00019452,2]
[360078641,1746539446152,-400.0,0.00019452,2]
[360078642,1746539446161,-505.72161325,0.00019452,2]
[360078643,1746539446170,-400.0,0.00019452,2]
[360078644,1746539446179,-400.0,0.00019452,2]
[360078645,1746539446188,-583.52,0.00019452,2]
[360078646,1746539446198,-400.0,0.00019452,2]
[360078647,1746539446207,-403.29389681,0.00019452,2]
[360078648,1746539446216,-400.0,0.00019452,2]
[360078649,1746539446225,-400.0,0.00019452,2]
[360078650,1746539446234,-400.0,0.00019452,2]
[360078651,1746539446243,-407.80801258,0.00019452,2]
[360078652,1746539446253,-530.06790024,0.00019452,2]
[360078653,1746539446262,-2938.9,0.00019452,2]
[360078654,1746539446271,-400.0,0.00019452,2]
[360078655,1746539446281,-400.0,0.00019452,2]
[360078656,1746539446290,-317.15975652,0.00019452,2]
[360078657,1746539446300,-400.0,0.00019452,2]
[360078658,1746539446309,-400.0,0.00019452,2]
[360078659,1746539446318,-407.5,0.00019452,2]
[360078660,1746539446327,-400.0,0.00019452,2]
[360078661,1746539446336,-400.0,0.00019452,2]
[360078662,1746539446346,-400.0,0.00019452,2]
[360078663,1746539446355,-151.0,0.00019452,2]
[360078664,1746539446364,-151.0,0.00019452,2]
[360078665,1746539446374,-400.0,0.00019452,2]
[360078666,1746539446384,-208.74870446,0.00019452,2]
[360078667,1746539446393,-408.75831636,0.00019452,2]
[360078668,1746539446403,-400.0,0.00019452,2]
[360078669,1746539446412,-400.0,0.00019452,2]
[360078670,1746539446422,-400.0,0.00019452,2]
[360078671,1746539446432,-400.0,0.00019452,2]
[360078672,1746539446441,-151.0,0.00019452,2]
[360078673,1746539446451,-151.0,0.00019452,2]
[360078674,1746539446461,-400.0,0.00019452,2]
[360078675,1746539446471,-400.0,0.00019452,2]
[360078676,1746539446481,-400.0,0.00019452,2]
[360078677,1746539446491,-400.0,0.00019452,2]
[360078678,1746539446501,-400.0,0.00019452,2]
[360078679,1746539446511,-400.0,0.00019452,2]
[360078680,1746539446521,-1026.77,0.00019452,2]
[360078681,1746539446531,-400.0,0.00019452,2]
[360078682,1746539446541,-400.0,0.00019452,2]
[360078683,1746539446551,-546.8,0.00019452,2]
[360078684,1746539446561,-400.0,0.00019452,2]
[360078685,1746539446571,-400.0,0.00019452,2]
[360078686,1746539446580,-400.0,0.00019452,2]
[360078687,1746539446590,-400.0,0.00019452,2]
[360078688,1746539446603,-1225.83,0.00019452,2]
[360078689,1746539446613,-400.0,0.00019452,2]
[360078690,1746539446623,-400.0,0.00019452,2]
[360078691,1746539446633,-594.14,0.00019452,2]
[360078692,1746539446643,-1272.7,0.00019452,2]
[360078693,1746539446653,-400.0,0.00019452,2]
[360078694,1746539446663,-1316.28,0.00019452,2]
[360078695,1746539446674,-400.0,0.00019452,2]
[360078696,1746539446683,-400.0,0.00019452,2]
[360078697,1746539446693,-446.38,0.00019452,2]
[360078698,1746539446703,-400.0,0.00019452,2]
[360078699,1746539446713,-400.0,0.00019452,2]
[360078700,1746539446722,-400.0,0.00019452,2]
[360078701,1746539446731,-400.0,0.00019452,2]
[360078702,1746539446741,-577.03,0.00019452,2]
[360078703,1746539446751,-658.09,0.00019452,2]
[360078704,1746539446760,-400.0,0.00019452,2]
[360078705,1746539446771,-400.0,0.00019452,2]
[360078706,1746539446781,-400.0,0.00019452,2]
[360078707,1746539446790,-400.0,0.00019452,2]
[360078708,1746539446800,-400.0,0.00019452,2]
[360078709,1746539446809,-400.0,0.00019452,2]
[360078710,1746539446819,-400.0,0.00019452,2]
[360078711,1746539446829,-1000.0,0.00019452,2]
[360078712,1746539446839,-400.0,0.00019452,2]
[360078713,1746539446848,-403.69009193,0.00019452,2]
[360078714,1746539446857,-668.53,0.00019452,2]
[360078715,1746539446867,-358.0,0.00019452,2]
[360078716,1746539446876,-936.27,0.00019452,2]
[360078717,1746539446887,-400.0,0.00019452,2]
[360078718,1746539446896,-400.0,0.00019452,2]
[360078719,1746539446906,-501.93745352,0.00019452,2]
[360078720,1746539446915,-5195.91,0.00019452,2]
[360078721,1746539446925,-1093.27,0.00019452,2]
[360078722,1746539446934,-400.0,0.00019452,2]
[360078723,1746539446944,-400.0,0.00019452,2]
[360078724,1746539446954,-400.0,0.00019452,2]
[360078725,1746539446963,-790.905965,0.00019452,2]
[360078726,1746539446973,-400.0,0.00019452,2]
[360078727,1746539446982,-790.905965,0.00019452,2]
[360078728,1746539446991,-400.0,0.00019452,2]
[360078729,1746539447000,-400.0,0.00019452,2]
[360078730,1746539447010,-400.0,0.00019452,2]
[360078731,1746539447019,-400.0,0.00019452,2]
[360078732,1746539447028,-5728.17,0.00019452,2]
[360078733,1746539447039,-400.0,0.00019452,2]
[360078734,1746539447048,-400.0,0.00019452,2]
[360078735,1746539447057,-414.78530242,0.00019452,2]
[360078736,1746539447067,-151.0,0.00019452,2]
[360078737,1746539447076,-151.0,0.00019452,2]
[360078738,1746539447085,-400.0,0.00019452,2]
[360078739,1746539447094,-151.0,0.00019452,2]
[360078740,1746539447104,-282.68756955,0.00019452,2]
[360078741,1746539447113,-400.0,0.00019452,2]
[360078742,1746539447123,-151.0,0.00019452,2]
[360078743,1746539447132,-151.0,0.00019452,2]
[360078744,1746539447141,-400.0,0.00019452,2]
[360078745,1746539447151,-486.9,0.00019452,2]
[360078746,1746539447160,-3328.82,0.00019452,2]
[360078747,1746539447169,-212.45092939,0.00019452,2]
[360078748,1746539447178,-327.01495317,0.00019452,2]
[360078749,1746539447187,-304.14962058,0.00019452,2]